bitfinex/quotes_SOLUSD_20250924
["timestamp","ask_amount","ask_price","bid_price","bid_amount"]
[1758681653663,133.9,214.88,214.87,0.7]
[1758681654086,1.44361679,214.95,214.87,5.35397682]
[1758681654382,26.0,214.93,214.88,0.7]
[1758681654588,1.44361679,214.95,214.89,0.7]
[1758681654887,133.9,214.96,214.89,0.7]
[1758681655072,133.9,215.07,214.89,0.7]
[1758681655259,133.9,215.07,214.86,0.2]
[1758681655260,1.44361679,214.93,214.86,0.2]
[1758681655459,13.59559401,214.84,214.81,0.2]
[1758681655676,26.0,214.8,214.78,0.2]
[1758681655983,72.4728145,214.8,214.78,0.2]
[1758681656162,88.91232285,214.8,214.78,0.2]
[1758681656768,92.72971813,214.8,214.78,0.2]
[1758681657267,13.80559401,214.89,214.79,5.55571022]
[1758681657587,1.44361679,214.85,214.8,0.7]
[1758681657884,1.44361679,214.85,214.79,4.85569404]
[1758681658076,6.09804465,214.85,214.81,0.7]
[1758681658283,3.41238228,214.84,214.82,0.7]
[1758681658475,6.09804465,214.85,214.79,4.85567962]
[1758681658476,1.44361679,214.85,214.83,0.7]
[1758681658676,3.41231839,214.84,214.8,0.7]
[1758681658883,6.09804089,214.85,214.8,0.7]
[1758681659080,3.41225863,214.84,214.8,0.7]
[1758681659286,3.41225863,214.83,214.81,0.7]
[1758681659594,6.09804089,214.85,214.81,0.7]
[1758681659772,4.8555841,214.84,214.81,0.7]
[1758681659971,3.41196731,214.83,214.81,0.7]
[1758681660172,6.09825716,214.84,214.81,0.7]
[1758681660382,3.41217142,214.83,214.81,0.7]
[1758681660701,6.09825716,214.84,214.79,0.2]
[1758681660992,3.41210711,214.83,214.8,0.7]
[1758681661287,1.44361679,214.85,214.81,0.7]
[1758681661488,3.41181056,214.84,214.81,0.7]
[1758681661677,1.44361679,214.87,214.82,0.7]
[1758681661997,3.41223467,214.86,214.82,0.7]
[1758681662168,15.0392108,214.89,214.82,0.7]
[1758681662169,19.69276312,214.89,214.83,4.65484336]
[1758681662495,3.41324362,214.88,214.84,0.7]
[1758681662790,3.41324362,214.87,214.85,0.7]
[1758681662989,19.69276312,214.89,214.85,0.7]
[1758681663192,3.41293933,214.88,214.85,0.7]
[1758681663395,3.41293933,214.88,214.83,4.65484336]
[1758681663396,8.06670235,214.88,214.83,0.7]
[1758681663575,4.65376302,214.88,214.84,0.7]
[1758681664381,4.65376302,214.88,214.82,4.65486777]
[1758681664582,4.65376302,214.88,214.84,0.7]
[1758681664781,4.65376302,214.88,214.85,0.7]
[1758681665770,4.65376302,214.88,214.83,0.7]
[1758681665972,4.65376302,214.88,214.84,0.7]
[1758681666186,1.44361679,214.85,214.79,0.2]
[1758681666384,1.44361679,214.85,214.81,0.7]
[1758681666581,1.44361679,214.85,214.82,0.7]
[1758681667102,1.44361679,214.85,214.8,0.7]
[1758681667398,30.65420714,214.86,214.81,0.7]
[1758681667579,135.34361679,214.85,214.81,0.7]
[1758681668894,135.34361679,214.85,214.81,4.65521916]
[1758681669100,133.9,214.85,214.82,0.7]
[1758681669685,133.9,214.85,214.8,5.35548597]
[1758681670001,133.9,214.85,214.81,0.7]
[1758681670596,133.9,214.85,214.79,0.2]
[1758681670597,1.44361679,214.82,214.79,0.2]
[1758681670796,133.9,214.81,214.79,0.2]
[1758681674202,4.65549348,214.8,214.79,0.2]
[1758681675192,133.9,214.81,214.79,0.2]
[1758681675398,133.9,214.81,214.79,0.9]
[1758681675793,133.9,214.81,214.79,0.2]
[1758681676308,133.9,214.81,214.79,0.9]
[1758681676488,133.9,214.81,214.8,0.7]
[1758681676888,135.34361679,214.86,214.8,0.7]
[1758681677407,36.88,214.87,214.8,0.7]
[1758681677607,1.44361679,214.85,214.8,0.7]
[1758681678104,1.44361679,214.85,214.81,0.7]
[1758681678316,26.0,214.86,214.82,4.65506005]
[1758681678519,1.44361679,214.87,214.82,4.65506005]
[1758681678520,1.44361679,214.87,214.83,0.7]
[1758681678701,2.2578144,214.87,214.83,0.7]
[1758681680001,2.2578144,214.85,214.8,0.7]
[1758681680909,2.2578144,214.83,214.79,0.2]
[1758681681694,2.2578144,214.83,214.79,0.91]
[1758681681887,6.91284031,214.83,214.79,0.2]
[1758681682210,6.91284031,214.83,214.79,0.91]
[1758681682591,2.2578144,214.83,214.79,0.91]
[1758681682792,6.91267704,214.83,214.79,0.91]
[1758681684007,6.91267704,214.83,214.79,0.2]
[1758681684209,7.12267704,214.83,214.79,0.2]
[1758681684687,6.91267704,214.83,214.79,0.2]
[1758681686110,2.2578144,214.81,214.79,0.2]
[1758681686614,162.1578144,214.84,214.8,0.71]
[1758681686789,162.1578144,214.84,214.81,0.71]
[1758681687287,166.81245014,214.84,214.81,0.71]
[1758681687690,159.9,214.84,214.81,0.71]
[1758681688612,159.9,214.84,214.82,0.71]
[1758681688814,133.9,214.84,214.83,0.71]
[1758681689017,23.26017135,214.96,214.83,0.71]
[1758681689018,4.65354631,214.89,214.83,0.71]
[1758681690505,2.2578144,214.88,214.83,0.71]
[1758681691511,2.2578144,214.88,214.83,5.36477313]
[1758681691712,2.2578144,214.88,214.83,4.65477313]
[1758681691915,2.2578144,214.88,214.84,0.71]
[1758681693004,6.91161624,214.88,214.83,4.65477313]
[1758681693208,6.91161624,214.88,214.83,5.36477313]
[1758681693519,6.91161624,214.88,214.83,4.65477313]
[1758681693820,6.91161624,214.88,214.83,5.36477313]
[1758681694344,133.9,214.87,214.8,16.29422718]
[1758681694505,133.9,214.87,214.84,0.71]
[1758681694718,133.9,214.87,214.8,16.29422718]
[1758681694719,133.9,214.87,214.85,0.71]
[1758681695623,133.9,214.87,214.81,4.65527675]
[1758681695805,133.9,214.87,214.86,0.71]
[1758681696315,133.9,214.87,214.84,0.71]
[1758681696618,133.9,214.87,214.85,0.71]
[1758681698130,133.9,214.87,214.83,4.65470542]
[1758681698302,133.9,214.87,214.84,0.71]
[1758681699508,133.9,214.87,214.83,4.65470542]
[1758681699910,133.9,214.87,214.83,5.36470542]
[1758681700606,133.9,214.87,214.84,0.71]
[1758681700805,133.9,214.87,214.83,4.65470542]
[1758681701507,133.9,214.87,214.83,5.36470542]
[1758681701928,138.55398049,214.87,214.83,0.71]
[1758681702306,133.9,214.87,214.83,4.65482432]
[1758681702502,133.9,214.87,214.83,5.36482432]
[1758681703026,133.9,214.87,214.84,0.71]
[1758681703522,133.9,214.87,214.83,4.65482432]
[1758681703841,133.9,214.87,214.83,0.71]
[1758681704039,133.9,214.87,214.84,0.71]
[1758681704209,133.9,214.87,214.82,0.71]
[1758681704533,133.9,214.87,214.83,0.71]
[1758681705025,138.55401865,214.87,214.83,0.71]
[1758681705226,133.9,214.87,214.83,0.71]
[1758681705423,133.9,214.87,214.82,4.65499911]
[1758681705625,133.9,214.87,214.83,0.71]
[1758681706333,133.9,214.86,214.84,4.65462669]
[1758681706635,133.9,214.86,214.84,5.36462669]
[1758681707433,133.9,214.86,214.83,4.65479862]
[1758681707640,133.9,214.86,214.83,5.36479862]
[1758681708637,133.9,214.86,214.81,0.71]
[1758681708841,133.9,214.86,214.82,0.71]
[1758681709007,133.9,214.86,214.83,0.71]
[1758681709934,133.9,214.86,214.84,0.71]
[1758681710231,133.9,214.86,214.85,0.71]
[1758681710933,133.9,214.86,214.85,5.36441005]
[1758681711332,136.1578144,214.95,214.85,19.25824958]
[1758681711542,1.16566793,214.94,214.86,0.71]
[1758681711953,136.1578144,214.95,214.86,0.71]
[1758681713135,133.9,214.95,214.87,16.28891887]
[1758681713330,133.9,214.95,214.88,0.71]
[1758681714732,133.9,214.95,214.89,16.28740285]
[1758681715430,134.11,214.95,214.89,16.28740285]
[1758681716125,133.9,214.95,214.9,0.71]
[1758681716323,133.9,214.94,214.91,0.71]
[1758681716737,133.9,214.94,214.89,0.71]
[1758681717640,133.9,214.94,214.9,0.71]
[1758681718233,133.9,214.94,214.91,4.6531106]
[1758681720239,2.4678144,214.93,214.81,0.71]
[1758681720423,2.4678144,214.93,214.82,0.71]
[1758681720424,28.2578144,214.91,214.82,0.71]
[1758681720624,0.21,214.9,214.82,0.71]
[1758681721446,2.2578144,214.89,214.83,4.65484336]
[1758681721639,0.21,214.88,214.8,5.36549348]
[1758681721840,0.21,214.88,214.81,0.71]
[1758681722142,2.2578144,214.89,214.81,0.71]
[1758681722628,2.4678144,214.89,214.81,0.71]
[1758681722839,7.12147545,214.89,214.82,4.65506005]
[1758681723551,13.59559401,214.9,214.83,0.71]
[1758681723552,2.2578144,214.9,214.83,0.71]
[1758681723721,26.0,214.89,214.83,0.71]
[1758681723924,136.1578144,214.92,214.83,0.71]
[1758681724436,136.3678144,214.92,214.83,0.71]
[1758681725427,141.02072498,214.92,214.84,16.29119343]
[1758681725628,133.9,214.92,214.85,0.71]
[1758681728553,133.9,214.92,214.86,16.28967699]
[1758681728738,133.9,214.92,214.87,0.71]
[1758681728937,133.9,214.92,214.88,0.71]
[1758681729254,133.9,214.92,214.89,0.71]
[1758681730051,133.9,214.92,214.9,4.65332712]
[1758681732048,134.11,214.92,214.85,37.21]
[1758681732358,133.9,214.92,214.86,12.34548357]
[1758681735155,0.21,214.9,214.84,4.65462669]
[1758681735460,0.21,214.9,214.84,16.29119343]
[1758681735630,141.02074258,214.92,214.84,17.00119343]
[1758681738659,136.3678144,214.92,214.84,17.00119343]
[1758681739139,0.21,214.91,214.84,17.00119343]
[1758681740565,0.21,214.91,214.84,16.29119343]
[1758681740867,0.21,214.91,214.86,4.65419342]
[1758681741663,0.21,214.91,214.86,5.33419342]
[1758681742045,133.9,214.92,214.87,0.68]
[1758681742669,133.9,214.92,214.88,4.65376023]
[1758681742976,133.9,214.92,214.89,0.68]
[1758681743146,133.9,214.92,214.9,0.68]
[1758681744148,133.9,214.92,214.88,5.33376023]
[1758681744359,133.9,214.92,214.89,0.68]
[1758681744649,133.9,214.92,214.9,4.65332712]
[1758681744850,133.9,214.92,214.89,0.68]
[1758681745769,133.9,214.92,214.89,5.33353601]
[1758681747051,133.9,214.92,214.87,0.68]
[1758681747252,133.9,214.92,214.88,0.68]
[1758681747561,133.9,214.92,214.89,0.68]
[1758681747964,133.9,214.92,214.9,0.68]
[1758681748157,133.9,214.92,214.91,0.68]
[1758681749574,133.9,214.92,214.91,5.3331106]
[1758681751080,133.9,214.92,214.91,4.6531106]
[1758681751480,133.9,214.92,214.91,0.68]
[1758681753686,133.9,214.92,214.91,5.3331106]
[1758681753895,133.9,214.92,214.91,4.6531106]
[1758681755085,133.9,214.92,214.9,4.65332712]
[1758681755894,133.9,214.92,214.9,5.33332712]
[1758681756188,133.9,214.92,214.89,4.65349514]
[1758681756390,133.9,214.92,214.86,0.68]
[1758681756586,134.11,214.92,214.86,0.68]
[1758681757897,134.11,214.92,214.86,5.33419342]
[1758681759586,133.9,214.91,214.86,5.33419342]
[1758681760469,133.9,214.91,214.87,0.68]
[1758681760670,133.9,214.91,214.88,0.68]
[1758681761075,133.9,214.91,214.86,17.73400223]
[1758681761279,133.9,214.91,214.89,0.68]
[1758681761696,133.9,214.91,214.87,0.68]
[1758681762286,133.9,214.91,214.88,0.68]
[1758681765073,133.9,214.91,214.89,4.65354367]
[1758681765588,133.9,214.91,214.89,5.33354367]
[1758681766402,133.9,214.91,214.89,4.65354367]
[1758681766976,133.9,214.91,214.89,0.68]
[1758681767179,133.9,214.91,214.9,0.68]
[1758681768309,133.9,214.97,214.9,0.68]
[1758681768497,133.9,214.96,214.9,0.68]
[1758681768682,133.9,214.96,214.9,37.08]
[1758681768884,0.21,215.01,214.91,2.12432524]
[1758681769103,0.21,215.04,214.95,1.44432524]
[1758681769304,0.21,215.04,214.96,37.08]
[1758681769806,0.21,215.04,214.97,0.68]
[1758681770203,0.21,215.04,214.98,4.65159549]
[1758681772088,4.8603742,215.04,214.98,4.65159549]
[1758681772292,6.30497043,215.03,214.97,4.65181188]
[1758681772597,1.44432524,215.01,214.92,0.7]
[1758681772802,1.44432524,214.99,214.92,0.7]
[1758681773114,1.65432524,214.99,214.92,0.7]
[1758681773702,4.86159549,214.98,214.92,5.35282285]
[1758681776115,1.44432524,214.99,214.92,5.35282285]
[1758681776293,1.44432524,214.99,214.93,0.7]
[1758681777400,133.9,214.98,214.94,4.65246115]
[1758681777607,133.9,214.98,214.94,5.35246115]
[1758681780096,138.55162888,214.98,214.93,4.65267002]
[1758681780416,138.55162888,214.98,214.88,0.7]
[1758681780417,1.44432524,214.95,214.88,0.7]
[1758681780599,1.65432524,214.95,214.88,0.7]
[1758681780992,1.44432524,214.95,214.88,0.7]
[1758681781214,1.44432524,214.95,214.89,4.65354367]
[1758681781415,1.44432524,214.95,214.89,5.35354367]
[1758681781918,6.09663041,214.95,214.89,5.35354367]
[1758681783924,1.44432524,214.95,214.89,5.35354367]
[1758681784125,6.0966042,214.95,214.89,5.35354367]
[1758681784504,1.44432524,214.93,214.86,0.7]
[1758681784708,0.21,214.92,214.85,4.65441005]
[1758681784910,1.44432524,214.93,214.86,0.7]
[1758681785231,1.44432524,214.91,214.85,4.65441005]
[1758681785411,1.44432524,214.91,214.84,0.7]
[1758681785412,4.65332712,214.9,214.84,0.7]
[1758681786306,1.65432524,214.89,214.82,0.7]
[1758681787004,1.44432524,214.87,214.82,0.7]
[1758681787314,1.44432524,214.87,214.83,0.7]
[1758681787916,6.30832377,214.87,214.81,0.67]
[1758681788116,6.09832377,214.87,214.81,0.67]
[1758681789213,6.09832377,214.87,214.81,5.3252427]
[1758681789414,1.44432524,214.86,214.81,0.67]
[1758681789595,1.65432524,214.86,214.81,0.67]
[1758681790221,1.44432524,214.86,214.81,0.67]
[1758681790811,1.44432524,214.86,214.81,5.32525242]
[1758681791517,1.44432524,214.86,214.82,0.67]
[1758681791823,1.44432524,214.86,214.83,0.67]
[1758681792523,138.5535563,214.89,214.83,0.67]
[1758681792724,1.44432524,214.87,214.83,0.67]
[1758681792925,1.44432524,214.87,214.84,0.67]
[1758681793220,133.9,214.89,214.85,0.67]
[1758681793422,133.9,214.89,214.86,5.32401253]
[1758681793726,133.9,214.89,214.86,4.65401253]
[1758681793936,133.9,214.89,214.87,0.67]
[1758681799129,133.9,214.89,214.8,11.63830575]
[1758681799130,135.34432524,214.89,214.8,11.63830575]
[1758681799348,135.34432524,214.89,214.84,0.67]
[1758681800214,139.9978837,214.89,214.84,0.67]
[1758681800416,135.34432524,214.89,214.85,0.72]
[1758681800637,2.25748481,214.88,214.85,0.72]
[1758681801134,2.25748481,214.88,214.85,5.37439939]
[1758681801830,2.25748481,214.88,214.86,0.72]
[1758681802010,133.9,214.89,214.87,0.72]
[1758681803035,133.9,214.89,214.84,5.37459344]
[1758681803334,2.25748481,214.88,214.84,5.37459344]
[1758681804231,2.25748481,214.88,214.84,4.65459344]
[1758681804536,2.25748481,214.88,214.85,0.72]
[1758681805118,2.25748481,214.88,214.82,11.63740441]
[1758681805320,133.9,214.89,214.83,0.72]
[1758681807434,133.9,214.89,214.84,4.65462669]
[1758681807635,133.9,214.89,214.84,5.37462669]
[1758681807840,133.9,214.89,214.85,0.72]
[1758681808537,133.9,214.89,214.84,4.65462669]
[1758681808736,133.9,214.89,214.85,0.72]
[1758681808933,133.9,214.89,214.86,0.72]
[1758681810153,133.9,214.89,214.86,5.37417138]
[1758681810651,2.25748481,214.99,214.88,2.25748481]
[1758681810818,2.25748481,214.99,214.89,0.72]
[1758681811539,6.90889094,214.99,214.9,16.28664494]
[1758681811724,6.90889094,214.99,214.91,0.72]
[1758681812138,39.99351633,215.02,214.91,0.72]
[1758681812346,2.25748481,215.01,214.91,0.72]
[1758681813548,2.25748481,215.01,214.92,16.28512935]
[1758681813733,2.25748481,215.01,214.93,0.72]
[1758681814234,6.9084438,215.01,214.93,0.72]
[1758681814628,7.1184438,215.01,214.93,0.72]
[1758681816037,7.1184438,215.01,214.94,4.65246115]
[1758681816649,0.21,215.0,214.92,4.6527168]
[1758681816944,2.46748481,214.99,214.92,5.3727168]
[1758681817246,2.25748481,214.97,214.9,0.72]
[1758681817829,13.59559401,215.0,214.9,17.00664494]
[1758681818033,2.25748481,214.99,214.91,0.72]
[1758681818244,2.25748481,214.99,214.92,16.28512935]
[1758681818447,30.65076128,215.02,214.93,0.72]
[1758681818746,2.25748481,215.02,214.93,0.72]
[1758681820349,7.11832194,215.02,214.94,4.65246115]
[1758681820536,2.25748481,215.0,214.94,4.65246115]
[1758681821548,2.25748481,215.0,214.94,5.37246115]
[1758681822247,7.11867103,215.0,214.94,5.37246115]
[1758681822839,2.46748481,215.0,214.94,5.37246115]
[1758681823037,2.25748481,215.0,214.95,0.72]
[1758681823356,2.25748481,215.0,214.96,0.72]
[1758681824061,2.25748481,215.0,214.96,5.3719523]
[1758681824668,4.65097982,215.01,214.96,4.6519523]
[1758681824858,6.90846463,215.01,214.97,0.72]
[1758681825249,2.25748481,215.01,214.97,5.37177803]
[1758681825557,2.25748481,215.01,214.97,4.65177803]
[1758681825936,2.25748481,215.01,214.97,5.37177803]
[1758681826361,6.90846463,215.03,214.98,0.72]
[1758681826539,133.9,215.01,214.98,0.72]
[1758681826865,133.9,215.01,214.97,4.65177803]
[1758681827042,133.9,215.01,214.98,0.72]
[1758681827244,133.9,215.01,214.98,5.37148418]
[1758681828873,134.11,215.01,214.95,0.72]
[1758681829560,134.11,215.01,214.96,4.65202828]
[1758681829771,134.11,215.01,214.96,5.37202828]
[1758681830368,133.9,215.01,214.96,5.37202828]
[1758681831439,138.76095319,215.01,214.96,0.72]
[1758681831659,138.76095319,215.01,214.96,5.37196846]
[1758681832644,134.11,215.01,214.96,5.37196846]
[1758681833255,133.9,215.01,214.97,0.66]
[1758681833656,133.9,215.01,214.96,4.65196846]
[1758681833968,133.9,215.01,214.97,0.66]
[1758681834575,133.9,215.01,214.98,5.31159549]
[1758681834756,133.9,215.01,214.98,0.66]
[1758681835159,133.9,215.01,214.97,4.65176428]
[1758681835469,133.9,215.01,214.97,5.31176428]
[1758681836671,133.9,215.0,214.97,5.31176428]
[1758681838679,133.9,215.0,214.98,0.66]
[1758681838980,133.9,215.0,214.98,5.31147473]
[1758681840281,133.9,215.0,214.98,4.65147473]
[1758681840582,133.9,215.0,214.99,0.66]
[1758681840943,133.9,215.0,214.99,5.31137913]
[1758681841451,136.15748481,215.06,214.99,16.93982696]
[1758681841647,0.21,215.05,214.99,4.65137913]
[1758681842364,2.46748481,215.05,214.99,5.31137913]
[1758681842760,0.21,215.04,214.97,5.311688]
[1758681842961,2.46748481,215.03,214.97,5.311688]
[1758681843171,2.25748481,215.03,214.97,5.311688]
[1758681843379,2.25748481,215.03,214.98,0.66]
[1758681843573,2.25748481,215.03,214.97,4.651688]
[1758681843783,2.25748481,215.03,214.97,5.311688]
[1758681844084,7.1179403,215.04,214.96,4.65202828]
[1758681844381,7.1179403,215.04,214.98,0.66]
[1758681844688,7.1179403,215.04,214.92,25.52095495]
[1758681844689,2.25748481,215.0,214.94,0.66]
[1758681844989,2.25748481,214.98,214.92,0.66]
[1758681846583,2.25748481,214.98,214.93,4.65267761]
[1758681846790,2.25748481,214.98,214.94,0.66]
[1758681847084,2.25748481,214.98,214.95,0.66]
[1758681847283,2.25748481,214.98,214.93,5.31267761]
[1758681847491,2.25748481,214.98,214.94,0.72]
[1758681847690,2.25748481,214.98,214.95,0.72]
[1758681847994,2.25748481,214.98,214.93,0.72]
[1758681848174,2.25748481,214.98,214.94,0.72]
[1758681849075,2.25748481,214.98,214.94,5.37235139]
[1758681850681,2.25748481,214.98,214.94,0.72]
[1758681851994,7.11909286,214.98,214.92,12.35208312]
[1758681852186,2.25748481,214.98,214.93,0.72]
[1758681852389,2.25748481,214.98,214.94,0.72]
[1758681852591,2.25748481,214.98,214.95,0.72]
[1758681852885,2.25748481,215.0,214.96,5.37202828]
[1758681853882,6.90865615,215.0,214.96,0.72]
[1758681854088,7.11865615,215.0,214.95,4.65220689]
[1758681854261,7.11865615,215.0,214.95,5.37220689]
[1758681854583,133.9,214.99,214.95,5.37220689]
[1758681854967,2.46748481,214.98,214.92,0.72]
[1758681856182,2.25748481,214.98,214.92,5.37274959]
[1758681856388,2.25748481,214.98,214.93,0.72]
[1758681856562,2.25748481,214.98,214.92,4.65274959]
[1758681856563,6.90908739,214.98,214.94,0.72]
[1758681857970,2.25748481,214.98,214.92,4.65274959]
[1758681858182,2.25748481,214.98,214.95,0.72]
[1758681858573,138.55142871,214.99,214.95,0.72]
[1758681858786,138.55142871,214.99,214.96,0.72]
[1758681859503,138.55142871,214.99,214.94,0.72]
[1758681859691,138.55142871,214.99,214.95,0.72]
[1758681860277,2.25748481,214.98,214.95,0.72]
[1758681860480,133.9,214.97,214.95,0.72]
[1758681860680,133.9,214.97,214.93,5.31267639]
[1758681866208,133.9,214.97,214.94,0.66]
[1758681866403,133.9,214.96,214.94,0.66]
[1758681867313,133.9,214.96,214.91,11.63273407]
[1758681867489,133.9,214.96,214.92,0.66]
[1758681868382,133.9,214.96,214.93,4.65267761]
[1758681868595,133.9,214.96,214.94,0.66]
[1758681868913,133.9,214.96,214.95,0.66]
[1758681869685,133.9,214.96,214.95,5.3122447]
[1758681875809,133.9,214.96,214.95,4.6522447]
[1758681876808,133.9,214.96,214.94,5.31242092]
[1758681877110,0.21,214.95,214.92,4.6528941]
[1758681877306,133.9,214.96,214.92,4.6528941]
[1758681879216,134.11,214.96,214.92,4.6528941]
[1758681879719,15.24907173,214.95,214.87,0.66]
[1758681879915,0.21,214.94,214.87,0.66]
[1758681880815,0.21,214.93,214.88,4.65376023]
[1758681881006,0.21,214.92,214.87,5.31393769]
[1758681881514,19.6914065,214.95,214.88,0.66]
[1758681881717,0.21,214.94,214.88,0.66]
[1758681883102,1.65347772,214.93,214.86,0.66]
[1758681883307,1.65347772,214.93,214.86,5.31419342]
[1758681883615,1.65347772,214.93,214.87,0.66]
[1758681884504,1.44347772,214.93,214.88,4.65376023]
[1758681884722,1.44347772,214.93,214.89,0.66]
[1758681884911,15.03907173,214.95,214.89,0.66]
[1758681885299,133.9,214.96,214.89,0.66]
[1758681885620,135.34347772,214.96,214.89,0.66]
[1758681886495,135.34347772,214.96,214.9,4.65332712]
[1758681886701,135.34347772,214.96,214.91,0.66]
[1758681886906,135.34347772,214.96,214.92,0.66]
[1758681887507,140.20558652,214.96,214.9,5.31332712]
[1758681890224,133.9,214.95,214.9,5.31332712]
[1758681890907,138.55233055,214.95,214.9,5.31332712]
[1758681891106,138.76233055,214.95,214.9,5.31332712]
[1758681893324,134.11,214.95,214.9,5.31332712]
[1758681894827,1.65347772,214.94,214.9,5.31332712]
[1758681895330,1.44347772,214.94,214.9,5.31332712]
[1758681896018,133.9,214.93,214.9,5.31332712]
[1758681896333,133.9,214.93,214.9,0.67]
[1758681896512,134.11,214.93,214.87,0.67]
[1758681896918,133.9,214.93,214.88,4.65376023]
[1758681897121,133.9,214.93,214.89,0.67]
[1758681897423,133.9,214.93,214.9,0.67]
[1758681900136,0.21,214.92,214.87,0.67]
[1758681900434,138.55270006,214.93,214.88,0.67]
[1758681900642,138.76270006,214.93,214.88,0.67]
[1758681900807,0.21,214.92,214.86,36.95]
[1758681901003,0.21,214.92,214.87,0.67]
[1758681901224,138.55270006,214.93,214.88,5.3236623]
[1758681901418,1.44347772,214.9,214.84,0.67]
[1758681902618,6.09685502,214.9,214.84,5.32442762]
[1758681902809,6.09685502,214.9,214.82,0.67]
[1758681902810,1.44347772,214.88,214.82,0.67]
[1758681903008,1.44347772,214.86,214.82,0.67]
[1758681905140,6.09781176,214.86,214.82,0.67]
[1758681905324,1.44347772,214.84,214.79,0.87]
[1758681905528,1.65347772,214.84,214.79,0.87]
[1758681906326,6.30825888,214.84,214.79,0.87]
[1758681907732,1.44347772,214.82,214.79,0.2]
[1758681910938,133.9,214.81,214.79,0.2]
[1758681911346,133.9,214.81,214.79,0.91]
[1758681911847,133.9,214.81,214.79,0.2]
[1758681912533,133.9,214.81,214.79,4.85566598]
[1758681912850,133.9,214.81,214.79,5.56566598]
[1758681913625,133.9,214.81,214.8,0.71]
[1758681914448,1.44347772,214.87,214.8,0.71]
[1758681914626,6.09752438,214.87,214.8,0.71]
[1758681915752,6.09752438,214.87,214.81,4.65527675]
[1758681916055,1.44347772,214.87,214.81,5.36527675]
[1758681916259,1.44347772,214.87,214.82,0.71]
[1758681916441,6.09747422,214.87,214.82,0.71]
[1758681916642,6.30747422,214.87,214.82,0.71]
[1758681917754,6.09747422,214.87,214.8,4.65549348]
[1758681917950,1.44347772,214.85,214.8,5.36549348]
[1758681918152,1.44347772,214.85,214.81,0.71]
[1758681918339,13.59559401,214.86,214.8,4.65549348]
[1758681918546,13.59559401,214.86,214.82,0.71]
[1758681919266,133.9,214.89,214.83,0.71]
[1758681919742,133.9,214.89,214.84,4.65462669]
[1758681919938,133.9,214.89,214.85,0.71]
[1758681920350,133.9,214.89,214.86,0.71]
[1758681920857,27.44347772,214.92,214.87,0.7]
[1758681921858,27.44347772,214.92,214.88,4.65376023]
[1758681922635,26.0,214.92,214.88,4.65376023]
[1758681922837,2.25655317,214.89,214.81,11.63810505]
[1758681923050,0.21,214.88,214.81,11.63810505]
[1758681923361,0.21,214.88,214.82,0.7]
[1758681923768,0.21,214.88,214.82,5.35506005]
[1758681923966,2.25655317,214.87,214.82,5.35506005]
[1758681924661,0.21,214.86,214.79,0.9]
[1758681924965,0.21,214.86,214.8,0.7]
[1758681925142,15.85214718,214.87,214.8,0.7]
[1758681925766,20.50633638,214.87,214.8,5.35547231]
[1758681926143,20.71633638,214.87,214.8,5.35547231]
[1758681926668,18.45978321,214.87,214.8,5.35547231]
[1758681926978,2.25655317,214.85,214.79,0.2]
[1758681927167,2.46655317,214.85,214.79,0.2]
[1758681927370,2.46655317,214.85,214.79,0.9]
[1758681927677,147.70559401,214.84,214.79,0.2]